bitfinex-derivatives/quotes_BTCF0:USTF0_20240820
["timestamp","ask_amount","ask_price","bid_price","bid_amount"]
[1724196749891,1.00484387,59187.0,59186.0,0.001]
[1724196750091,0.084475,59182.0,59181.0,0.0002535]
[1724196750288,0.445275,59182.0,59181.0,0.0002535]
[1724196752187,0.445275,59182.0,59181.0,0.0847305]
[1724196752691,0.445275,59182.0,59181.0,0.2016305]
[1724196752892,0.00865045,59183.0,59182.0,0.084475]
[1724196753194,0.24729587,59187.0,59186.0,0.08447]
[1724196753396,0.24729587,59187.0,59186.0,0.20137]
[1724196754695,0.01053587,59187.0,59186.0,0.08447]
[1724196754900,0.1169,59187.0,59186.0,0.08547]
[1724196755092,0.1169,59187.0,59186.0,0.08647]
[1724196759693,0.12561935,59189.0,59188.0,0.084467]
[1724196760002,0.4777,59189.0,59188.0,0.084467]
[1724196761402,0.4777,59189.0,59188.0,0.085467]
[1724196761806,0.4777,59189.0,59188.0,0.086467]
[1724196762311,0.562165,59189.0,59188.0,0.086467]
[1724196772612,0.445265,59189.0,59188.0,0.086467]
[1724196774702,0.00871605,59190.0,59188.0,0.086467]
[1724196774911,0.0847145,59192.0,59191.0,0.084463]
[1724196776617,0.0847145,59192.0,59191.0,0.086463]
[1724196777313,0.09328407,59192.0,59191.0,0.086463]
[1724196786722,1.00012407,59192.0,59184.0,0.05062579]
[1724196786918,1.00012407,59192.0,59181.0,0.0002535]
[1724196786919,0.084475,59182.0,59181.0,0.0002535]
[1724196787136,0.29412849,59182.0,59181.0,1e-08]
[1724196787425,0.43462849,59182.0,59181.0,1e-08]
[1724196788425,0.443247,59182.0,59181.0,1e-08]
[1724196790020,1.350167,59182.0,59181.0,1e-08]
[1724196790215,0.08449,59172.0,59169.0,0.084494]
[1724196790418,0.4777,59170.0,59169.0,0.084494]
[1724196791822,0.4777,59170.0,59169.0,0.094494]
[1724196792118,0.4777,59170.0,59168.0,0.00112]
[1724196792320,0.0755,59165.0,59164.0,0.0002535]
[1724196792630,0.5432,59165.0,59164.0,0.0002535]
[1724196792923,0.5342,59165.0,59164.0,0.0002535]
[1724196793425,0.5342,59165.0,59164.0,0.0282535]
[1724196793621,0.4777,59165.0,59164.0,0.1127545]
[1724196798318,0.5622,59165.0,59164.0,0.1127545]
[1724196801725,0.5622,59165.0,59164.0,0.0282535]
[1724196801726,0.6467,59165.0,59164.0,0.0282535]
[1724196801927,1.57286844,59165.0,59144.0,0.1632]
[1724196802129,0.1169,59146.0,59145.0,3.8164]
[1724196802328,0.11969095,59146.0,59145.0,3.8164]
[1724196803230,0.11969095,59146.0,59144.0,0.112529]
[1724196803434,0.00279095,59145.0,59144.0,0.112529]
[1724196804936,0.1179,59146.0,59145.0,0.08773705]
[1724196805237,0.12683313,59146.0,59145.0,0.08773705]
[1724196805536,0.12583313,59146.0,59145.0,0.084528]
[1724196805738,0.12683313,59146.0,59145.0,0.084528]
[1724196806546,0.12783313,59146.0,59145.0,0.084528]
[1724196812247,0.12783313,59146.0,59141.0,0.445333]
[1724196812448,0.1169,59142.0,59141.0,0.445333]
[1724196813850,0.1169,59142.0,59141.0,0.084533]
[1724196814447,0.1179,59142.0,59141.0,0.087533]
[1724196814754,0.1179,59142.0,59141.0,0.090533]
[1724196815545,0.1179,59142.0,59141.0,0.087533]
[1724196815749,0.1189,59142.0,59141.0,0.090533]
[1724196816842,0.084535,59140.0,59128.0,0.05062579]
[1724196817047,0.1169,59129.0,59125.0,0.00019122]
[1724196817345,0.562255,59126.0,59125.0,0.00019122]
[1724196817543,0.48049227,59126.0,59125.0,0.00019122]
[1724196817952,0.47449227,59126.0,59125.0,0.00019122]
[1724196818253,0.35759227,59126.0,59125.0,0.00019122]
[1724196818453,0.00279227,59126.0,59125.0,0.59214822]
[1724196818656,0.3610535,59131.0,59130.0,0.08455]
[1724196818961,0.3610535,59131.0,59130.0,0.20145]
[1724196819149,0.3610535,59131.0,59130.0,0.19045]
[1724196820149,0.51007508,59150.0,59140.0,0.084535]
[1724196820150,0.36204,59141.0,59140.0,0.084535]
[1724196820348,0.4777,59141.0,59140.0,0.084535]
[1724196820653,0.3608,59141.0,59140.0,0.084535]
[1724196820851,0.36966262,59141.0,59135.0,0.084541]
[1724196821157,0.36966262,59141.0,59136.0,0.084541]
[1724196821853,0.3608,59141.0,59132.0,0.0002535]
[1724196822450,0.001,59141.0,59140.0,0.084534]
[1724196824050,0.00924761,59144.0,59142.0,0.084532]
[1724196824257,0.00924761,59144.0,59143.0,0.084531]
[1724196826549,0.00924761,59144.0,59138.0,0.05062579]
[1724196826753,0.737636,59140.0,59134.0,0.05062579]
[1724196827147,0.737636,59140.0,59136.0,0.084541]
[1724196829651,0.084537,59139.0,59136.0,0.084541]
[1724196830157,0.00232001,59140.0,59139.0,0.084537]
[1724196830458,0.001,59140.0,59139.0,0.130737]
[1724196830860,0.001,59140.0,59139.0,3.900737]
[1724196831450,0.00935176,59144.0,59139.0,3.900737]
[1724196831758,0.0002535,59144.0,59143.0,0.084531]
[1724196832056,0.0002535,59144.0,59139.0,0.085577]
[1724196832266,0.3608,59140.0,59139.0,0.084537]
[1724196832459,0.0002535,59144.0,59139.0,0.084537]
[1724196832656,0.3608,59140.0,59139.0,0.084537]
[1724196836366,0.00934465,59144.0,59136.0,0.3608]
[1724196836552,0.00934465,59144.0,59143.0,0.084531]
[1724196838663,0.01034465,59144.0,59143.0,0.084531]
[1724196844371,0.0012535,59144.0,59143.0,0.084531]
[1724196848573,0.1181535,59144.0,59143.0,0.084531]
[1724196850573,0.1169,59152.0,59151.0,0.08452]
[1724196851466,0.0002535,59157.0,59150.0,0.1169]
[1724196851674,0.0002535,59157.0,59154.0,0.1169]
[1724196851875,0.48641844,59156.0,59155.0,0.084514]
[1724196852561,0.36951844,59156.0,59155.0,0.084514]
[1724196852765,0.38251844,59156.0,59155.0,0.084514]
[1724196854378,0.36951844,59156.0,59155.0,0.084514]
[1724196854575,0.38351844,59156.0,59155.0,0.084514]
[1724196854967,0.02271844,59156.0,59155.0,0.084514]
[1724196859974,0.014,59156.0,59155.0,0.084514]
[1724196861800,0.014,59156.0,59155.0,1.037634]
[1724196862275,0.014,59156.0,59155.0,4.807634]
[1724196863980,0.7314,59166.0,59156.0,0.084513]
[1724196864282,0.73276,59166.0,59156.0,0.084513]
[1724196864480,0.817259,59166.0,59165.0,0.0845]
[1724196864674,0.490499,59166.0,59165.0,0.0845]
[1724196865785,0.49936362,59166.0,59165.0,0.0845]
[1724196865987,0.49936362,59166.0,59160.0,0.0002535]
[1724196865988,0.0845,59165.0,59160.0,0.0002535]
[1724196866370,0.0845,59165.0,59163.0,0.084502]
[1724196866573,0.41486462,59166.0,59165.0,0.0845]
[1724196866786,0.05406462,59166.0,59165.0,0.0845]
[1724196866983,0.06806462,59166.0,59165.0,0.0855]
[1724196867375,0.02286462,59166.0,59165.0,0.0855]
[1724196871579,0.02286462,59166.0,59165.0,0.4463]
[1724196872288,0.014,59166.0,59165.0,0.4463]
[1724196872484,0.014,59166.0,59165.0,0.5632]
[1724196874190,0.3610535,59171.0,59170.0,0.084492]
[1724196874387,0.3610535,59171.0,59170.0,0.201392]
[1724196874575,0.0002535,59171.0,59170.0,0.201392]
[1724196875188,0.0002535,59171.0,59170.0,0.792884]
[1724196875584,0.0002535,59171.0,59170.0,0.445292]
[1724196876182,0.0012535,59171.0,59170.0,0.446292]
[1724196876883,0.0002535,59171.0,59170.0,0.445292]
[1724196877080,0.0002535,59171.0,59170.0,0.450292]
[1724196877285,0.0002535,59171.0,59170.0,0.957292]
[1724196877580,0.0002535,59171.0,59170.0,1.074192]
[1724196878596,0.0002535,59171.0,59170.0,0.567192]
[1724196883094,0.0002535,59171.0,59170.0,0.206392]
[1724196883294,0.0002535,59171.0,59170.0,0.567192]
[1724196883493,0.0002535,59171.0,59170.0,0.569192]
[1724196884191,1e-08,59171.0,59170.0,0.653684]
[1724196884395,0.084475,59183.0,59180.0,0.084478]
[1724196884589,0.084475,59183.0,59175.0,0.4777]
[1724196884590,0.1169,59179.0,59175.0,0.4777]
[1724196885494,0.1169,59179.0,59178.0,0.084481]
[1724196885992,0.1159,59179.0,59178.0,0.084481]
[1724196886701,0.1209,59179.0,59178.0,0.084481]
[1724196887199,0.1249,59179.0,59178.0,0.085481]
[1724196890101,0.009,59179.0,59178.0,0.085481]
[1724196890797,0.009,59179.0,59178.0,0.202381]
[1724196893596,0.0091942,59181.0,59178.0,0.202381]
[1724196893799,0.0002535,59183.0,59182.0,0.084475]
[1724196895803,0.00935715,59183.0,59182.0,0.084475]
[1724196895998,0.02135715,59183.0,59182.0,0.085475]
[1724196896408,0.02135715,59183.0,59182.0,0.086475]
[1724196901006,0.13825715,59183.0,59182.0,0.086475]
[1724196903906,0.49905715,59183.0,59182.0,0.086475]
[1724196904110,0.49905715,59183.0,59175.0,0.084485]
[1724196904111,0.084485,59176.0,59175.0,0.084485]
[1724196904306,0.201388,59174.0,59172.0,0.08449]
[1724196904508,0.1169,59174.0,59171.0,0.0002535]
[1724196904711,0.08449,59172.0,59171.0,0.0002535]
[1724196905715,0.08449,59172.0,59171.0,0.0012535]
[1724196906212,0.09361724,59172.0,59171.0,0.0052535]
[1724196907014,0.09361724,59172.0,59171.0,0.0012535]
[1724196907410,0.10061724,59172.0,59171.0,0.0012535]
[1724196907613,0.46141724,59172.0,59171.0,0.0012535]
[1724196909303,0.37692724,59172.0,59171.0,0.0012535]
[1724196909505,0.01612724,59172.0,59171.0,0.0857445]
[1724196909715,0.007,59172.0,59171.0,0.4465445]
[1724196910120,0.007,59172.0,59171.0,4.2165445]
[1724196912919,0.084478,59181.0,59178.0,0.08448]
[1724196913313,0.00904143,59181.0,59180.0,0.084478]
[1724196913523,0.0002535,59183.0,59182.0,0.084475]
[1724196914915,0.00936973,59183.0,59182.0,0.084475]
[1724196915112,0.0002535,59183.0,59182.0,0.084475]
[1724196915809,0.0082535,59183.0,59182.0,0.085475]
[1724196916321,0.0092535,59183.0,59182.0,0.086475]
[1724196916707,0.0012535,59183.0,59182.0,0.085475]
[1724196916915,0.0022535,59183.0,59182.0,0.086475]
[1724196917615,0.0012535,59183.0,59182.0,0.085475]
[1724196917817,0.0022535,59183.0,59182.0,0.086475]
[1724196924525,0.3630535,59183.0,59182.0,0.086475]
[1724196925428,0.4475275,59183.0,59182.0,0.086475]
[1724196926213,0.4475275,59183.0,59182.0,0.002]
[1724196926418,0.08449,59172.0,59171.0,0.0002535]
[1724196926620,0.7216,59172.0,59171.0,0.0002535]
[1724196927020,0.7216,59172.0,59171.0,0.0847445]
[1724196927620,0.7216,59172.0,59171.0,0.0887445]
[1724196927930,0.7216,59172.0,59171.0,0.0897445]
[1724196928821,0.7216,59172.0,59171.0,0.0857445]
[1724196929128,0.7216,59172.0,59171.0,0.0887445]
[1724196929431,0.7216,59172.0,59171.0,0.0877445]
[1724196930130,0.7236,59172.0,59171.0,0.0877445]
[1724196930824,0.7256,59172.0,59171.0,0.0877445]
[1724196931021,0.7256,59172.0,59171.0,0.0847445]
[1724196931826,0.7276,59172.0,59171.0,0.0847445]
[1724196932826,0.7276,59172.0,59171.0,0.0002535]
[1724196933132,0.81209,59172.0,59171.0,0.0002535]
[1724196933338,0.95279,59172.0,59171.0,0.0002535]
[1724196933835,1.54428,59172.0,59171.0,1e-08]
[1724196934035,2.12555988,59172.0,59171.0,1e-08]
[1724196938633,1.72555988,59172.0,59171.0,1e-08]
[1724196939032,2.12555988,59172.0,59171.0,1e-08]
[1724196939632,1.72555988,59172.0,59171.0,1e-08]
[1724196939836,1.64106988,59172.0,59171.0,1e-08]
[1724196940028,2.12555988,59172.0,59171.0,1e-08]
[1724196942043,0.084499,59166.0,59154.0,0.0473]
[1724196942251,0.3608,59158.0,59154.0,0.0473]
[1724196943644,0.3468,59153.0,59150.0,0.0847745]
[1724196944236,0.3328,59153.0,59152.0,0.014]
[1724196945633,0.3328,59153.0,59150.0,0.0987745]
[1724196945634,0.3328,59153.0,59150.0,0.0142535]
[1724196945829,0.3338,59153.0,59152.0,0.014]
[1724196946033,0.34308792,59153.0,59152.0,0.014]
[1724196946438,0.3338,59153.0,59152.0,0.022]
[1724196946640,0.001,59153.0,59152.0,0.106518]
[1724196947339,0.001,59153.0,59152.0,1.098196]
[1724196947538,0.0002535,59162.0,59161.0,0.084505]
[1724196948736,0.0012535,59162.0,59161.0,0.084505]
[1724196948941,0.084491,59172.0,59159.0,0.084508]
[1724196949138,0.00893027,59172.0,59171.0,0.084491]
[1724196949345,0.36204,59173.0,59171.0,0.084491]
[1724196949346,0.3608,59173.0,59171.0,0.084491]
[1724196949539,0.084486,59175.0,59172.0,0.08449]
[1724196950340,0.4101335,59179.0,59173.0,0.084488]
[1724196950849,0.41912679,59179.0,59173.0,0.084488]
[1724196951437,0.42412679,59179.0,59173.0,0.084488]
[1724196952153,0.007,59175.0,59173.0,0.084488]
[1724196952847,0.10672679,59179.0,59175.0,0.084484]
[1724196953439,0.09872679,59179.0,59175.0,0.084484]
[1724196953942,0.10872679,59179.0,59175.0,0.085484]
[1724196954345,0.10372679,59179.0,59175.0,0.085484]
[1724196955345,0.11072679,59179.0,59175.0,0.086484]
[1724196958342,0.084481,59178.0,59175.0,0.086484]
[1724196958753,0.02624679,59179.0,59175.0,0.002]
[1724196958940,0.02624679,59179.0,59178.0,0.084481]
[1724196959447,0.01624679,59179.0,59178.0,0.084481]
[1724196960245,0.03024679,59179.0,59178.0,0.085481]
[1724196960450,0.02324679,59179.0,59178.0,0.085481]
[1724196961251,0.03424679,59179.0,59178.0,0.086481]
[1724196961446,0.39504679,59179.0,59178.0,0.086481]
[1724196961653,0.47952679,59179.0,59178.0,0.002]
[1724196966253,0.4705335,59179.0,59178.0,0.002]
[1724196966453,0.0252535,59179.0,59178.0,0.086481]
[1724196967754,0.1097335,59179.0,59178.0,0.086481]
[1724196971349,0.1097335,59179.0,59178.0,0.002]
[1724196973150,0.4705335,59179.0,59178.0,0.002]
[1724196974455,0.4705335,59179.0,59178.0,0.086481]
[1724196975351,0.4705335,59179.0,59178.0,0.002]
[1724196975554,0.084487,59174.0,59171.0,0.08449]
[1724196975859,0.445287,59174.0,59171.0,0.08449]
[1724196976056,0.3608,59174.0,59168.0,0.0486535]
[1724196976358,0.084493,59170.0,59168.0,0.1331485]
[1724196976549,0.084493,59170.0,59169.0,0.084494]
[1724196976950,0.083493,59170.0,59169.0,0.084494]
[1724196977258,0.083493,59170.0,59169.0,0.13500231]
[1724196977447,0.085493,59170.0,59169.0,0.13500231]
[1724196978257,0.003,59170.0,59169.0,0.084494]
[1724196978458,0.2952,59170.0,59168.0,0.0002535]
[1724196978659,0.084505,59161.0,59160.0,0.05067313]
[1724196978858,0.084508,59159.0,59158.0,0.05067313]
[1724196979059,0.084508,59159.0,59157.0,0.13518413]
[1724196979354,0.084508,59159.0,59157.0,0.084511]
[1724196979764,0.084512,59156.0,59153.0,0.05067313]
[1724196979952,0.3548,59154.0,59153.0,0.05067313]
[1724196980156,0.3548,59154.0,59152.0,0.05092663]
[1724196980353,0.084515,59155.0,59152.0,0.0002535]
[1724196980655,0.078515,59155.0,59152.0,0.0002535]
[1724196981061,0.002,59159.0,59153.0,0.006]
[1724196981062,0.085516,59154.0,59153.0,0.006]
[1724196982166,0.086516,59154.0,59153.0,0.008]
[1724196982566,0.002,59154.0,59153.0,0.092517]
[1724196982766,0.001,59154.0,59153.0,0.593677]
[1724196982954,0.001,59154.0,59153.0,0.690977]
[1724196983159,0.001,59155.0,59154.0,0.084515]
[1724196983455,0.3608,59161.0,59160.0,0.084507]
[1724196983967,0.00934804,59164.0,59163.0,0.084502]
[1724196983968,0.0002535,59164.0,59163.0,0.084502]
[1724196984570,0.0002535,59164.0,59163.0,3.854502]
[1724196985671,1e-08,59164.0,59163.0,3.854502]
[1724196986168,0.00100001,59164.0,59163.0,3.857502]
[1724196987769,0.00100001,59164.0,59163.0,3.90804992]
[1724196988370,0.00100001,59164.0,59163.0,3.857502]
[1724196989274,0.00100001,59164.0,59163.0,3.90805102]
[1724196989569,0.00100001,59164.0,59163.0,3.857502]
[1724196989771,0.3608,59183.0,59163.0,4.97228]
[1724196990072,0.084481,59178.0,59176.0,0.084483]
[1724196991260,0.085481,59178.0,59176.0,0.084483]
[1724196992068,0.093481,59178.0,59176.0,0.084483]
[1724196992264,0.009,59178.0,59177.0,0.084482]
[1724196992775,0.022,59178.0,59177.0,0.084482]
[1724196993274,0.009,59178.0,59177.0,0.084482]
[1724196993474,0.023,59178.0,59177.0,0.084482]
[1724196994276,0.3152,59178.0,59177.0,0.084482]
[1724196994872,0.400681,59178.0,59177.0,0.084482]
[1724196997676,0.3162,59178.0,59174.0,0.084486]
[1724196997873,0.084485,59175.0,59174.0,0.084486]
[1724196999780,0.094485,59175.0,59174.0,0.084486]
[1724197001071,0.01,59175.0,59174.0,0.084486]
[1724197001276,0.017,59175.0,59174.0,0.084486]
[1724197003678,0.017,59175.0,59174.0,0.675933]
[1724197004782,0.017,59175.0,59174.0,1.036733]
[1724197005180,0.017,59175.0,59174.0,1.08728703]
[1724197006071,0.017,59175.0,59174.0,1.036733]
[1724197008384,0.0002535,59183.0,59182.0,0.084475]
[1724197009887,0.0142535,59183.0,59182.0,0.084475]
[1724197010778,0.0282535,59183.0,59182.0,0.085475]
[1724197014181,0.4049275,59183.0,59182.0,0.001]
[1724197014383,0.084483,59177.0,59175.0,0.084484]
[1724197014574,0.3608,59176.0,59175.0,0.084484]
[1724197014887,0.445284,59176.0,59175.0,0.084484]
[1724197015685,0.445284,59176.0,59175.0,0.085484]
[1724197015984,0.455284,59176.0,59175.0,0.086484]
[1724197017785,0.463284,59176.0,59175.0,0.086484]
[1724197018283,0.47253725,59176.0,59175.0,0.002]
[1724197020386,0.11173725,59176.0,59175.0,0.002]
[1724197021386,0.11173725,59176.0,59175.0,0.086485]
[1724197026682,0.02725325,59176.0,59175.0,0.086485]
[1724197027391,0.018,59176.0,59175.0,0.447285]
[1724197031488,0.018,59176.0,59175.0,0.086485]
[1724197037287,0.102484,59176.0,59175.0,0.002]
[1724197038194,0.018,59176.0,59175.0,0.086485]
[1724197038692,0.018,59176.0,59175.0,0.176585]
[1724197040491,0.084476,59182.0,59181.0,0.084477]
[1724197040696,0.00944302,59183.0,59182.0,0.084475]
[1724197040893,0.0002535,59183.0,59182.0,0.084475]
[1724197042502,0.0142535,59183.0,59182.0,0.001]
[1724197042799,0.3064535,59183.0,59182.0,0.001]
[1724197043201,0.3184535,59183.0,59182.0,0.002]
[1724197043497,0.4029275,59183.0,59182.0,0.002]
[1724197045797,0.3184535,59183.0,59182.0,0.086475]
[1724197046588,0.3184535,59183.0,59182.0,0.002]
[1724197047295,0.4029275,59183.0,59176.0,0.05064949]
[1724197047602,0.3608,59179.0,59175.0,0.05064949]
[1724197047908,0.3608,59179.0,59171.0,0.0002535]
[1724197047909,0.084482,59178.0,59176.0,0.084483]
[1724197048093,0.2922,59177.0,59173.0,0.084488]
[1724197048403,0.084486,59175.0,59173.0,0.084488]
[1724197048604,0.044,59174.0,59173.0,0.084488]
[1724197049406,0.043,59174.0,59173.0,0.084488]
[1724197050093,0.05,59174.0,59173.0,0.085488]
[1724197050294,0.007,59174.0,59173.0,0.085488]
[1724197050496,0.007,59174.0,59173.0,0.13613749]
[1724197052102,0.007,59174.0,59173.0,0.085488]
[1724197052103,0.012,59174.0,59173.0,0.085488]
[1724197052404,0.012,59174.0,59173.0,0.992488]
[1724197052702,0.012,59174.0,59173.0,0.085488]
[1724197052906,0.012,59174.0,59173.0,0.23732042]
[1724197053801,0.012,59174.0,59173.0,0.169976]
[1724197054802,0.012,59174.0,59173.0,0.530776]
[1724197055193,0.012,59174.0,59173.0,0.169976]
[1724197055405,0.012,59174.0,59173.0,0.530776]
[1724197063903,0.012,59174.0,59173.0,0.169976]
[1724197064202,0.012,59174.0,59173.0,0.530776]
[1724197066506,0.012,59174.0,59173.0,0.647676]
[1724197070815,0.1169,59181.0,59173.0,1.53773494]
[1724197071015,0.1169,59181.0,59177.0,0.05066002]
[1724197071315,0.0847285,59183.0,59177.0,0.05066002]
[1724197071316,0.1169,59178.0,59177.0,0.05066002]
[1724197071811,0.1169,59178.0,59177.0,0.13514202]
[1724197072015,0.1169,59178.0,59177.0,0.084482]
[1724197072810,0.201381,59178.0,59177.0,0.085482]
[1724197073410,0.209381,59178.0,59177.0,0.085482]
[1724197073814,0.217381,59178.0,59177.0,0.086482]
[1724197074215,0.263981,59178.0,59177.0,0.086482]
[1724197077514,0.147081,59178.0,59177.0,0.086482]
[1724197077713,0.263981,59178.0,59177.0,0.086482]
[1724197077916,0.263981,59178.0,59177.0,0.13714202]
[1724197080317,0.263981,59178.0,59177.0,0.002]
[1724197080318,1.255422,59178.0,59177.0,0.002]
[1724197080524,1.616222,59178.0,59177.0,0.002]
[1724197080722,0.08449,59172.0,59171.0,0.0847445]
[1724197080923,0.56219,59172.0,59171.0,0.0847445]
[1724197082024,0.56419,59172.0,59171.0,0.0847445]
[1724197082615,0.56919,59172.0,59171.0,0.0847445]
[1724197082813,0.4847,59172.0,59171.0,0.0847445]
[1724197083014,0.3678,59172.0,59171.0,0.2016445]
[1724197083720,0.3678,59172.0,59171.0,3.9716445]
[1724197084628,0.007,59172.0,59171.0,3.9716445]
[1724197085321,0.007,59172.0,59171.0,4.04859512]
[1724197085518,0.0466,59178.0,59171.0,3.98104818]
[1724197085714,0.0466,59178.0,59175.0,0.1169]
[1724197086825,0.0516,59178.0,59175.0,0.1169]
[1724197087021,0.06107542,59178.0,59175.0,0.1169]
[1724197087221,0.06707542,59178.0,59175.0,0.1179]
[1724197087429,0.06707542,59178.0,59177.0,0.084482]
[1724197087923,0.06507542,59178.0,59177.0,0.084482]
[1724197088125,0.07207542,59178.0,59177.0,0.084482]
[1724197088717,0.06307542,59178.0,59177.0,0.084482]
[1724197088925,0.06907542,59178.0,59177.0,0.086482]
[1724197090326,0.15355642,59178.0,59177.0,0.086482]
[1724197090923,0.02247542,59178.0,59177.0,0.086482]
[1724197097745,0.013,59178.0,59177.0,0.086482]
[1724197099648,0.013,59178.0,59177.0,0.1371243]
[1724197100745,0.013,59178.0,59177.0,0.14622772]
[1724197100941,0.013,59178.0,59177.0,0.09558542]
[1724197101752,0.013,59178.0,59177.0,0.18006742]
[1724197105445,0.013,59178.0,59177.0,0.09558542]
[1724197105646,0.013,59178.0,59177.0,0.086482]
[1724197108047,0.013,59178.0,59177.0,0.1371243]
[1724197111152,0.013,59178.0,59177.0,0.086482]
[1724197111348,0.013,59178.0,59177.0,0.13712904]
[1724197111650,0.3738,59178.0,59177.0,0.086482]
[1724197112654,0.1299,59178.0,59177.0,0.086482]
[1724197113356,0.1299,59178.0,59177.0,0.13712904]
[1724197114464,0.1299,59178.0,59177.0,0.086482]
[1724197116451,0.013,59178.0,59177.0,0.086482]
[1724197118248,0.013,59178.0,59177.0,0.13715989]
[1724197119354,0.00947699,59182.0,59181.0,0.084477]
[1724197119355,0.12637699,59182.0,59181.0,0.084477]
[1724197119660,0.1169,59182.0,59181.0,0.084477]
[1724197120453,0.1239,59182.0,59181.0,0.086477]
[1724197120761,0.1279,59182.0,59181.0,0.086477]
[1724197123262,0.1279,59182.0,59181.0,0.13715489]
[1724197125463,0.1279,59182.0,59181.0,0.14639035]
[1724197126158,0.011,59182.0,59181.0,0.14639035]
[1724197126361,0.011,59182.0,59181.0,0.09571246]
[1724197129154,0.011,59182.0,59181.0,0.086477]
[1724197129566,0.1279,59182.0,59181.0,0.086477]
[1724197131069,0.1279,59182.0,59181.0,0.13715466]
[1724197132664,0.1279,59182.0,59181.0,0.086477]
[1724197151976,0.212375,59182.0,59181.0,0.086477]
[1724197152783,0.212375,59182.0,59181.0,0.13717559]
[1724197153184,0.212375,59182.0,59181.0,0.086477]
[1724197160086,0.011,59182.0,59181.0,0.086477]
[1724197160393,0.011,59182.0,59181.0,0.170954]
[1724197163683,0.011,59182.0,59181.0,0.086477]
[1724197164597,0.011,59182.0,59181.0,0.1371605]
[1724197164986,0.011,59182.0,59181.0,0.1371624]
[1724197166705,0.011,59182.0,59181.0,0.086477]
[1724197168290,0.095475,59182.0,59181.0,0.13716263]
[1724197169893,0.17995,59182.0,59181.0,0.002]
[1724197170085,0.084487,59174.0,59173.0,0.084487]
[1724197170287,0.08449,59172.0,59171.0,0.0002535]
[1724197170692,0.99149,59172.0,59171.0,0.0002535]
[1724197173286,0.59149,59172.0,59171.0,0.0002535]
[1724197173695,0.60115936,59172.0,59171.0,0.0002535]
[1724197174603,0.09415936,59172.0,59171.0,0.0002535]
[1724197174807,0.60115936,59172.0,59171.0,0.0002535]
[1724197175102,0.09415936,59172.0,59171.0,0.0002535]
[1724197175504,0.45495936,59172.0,59171.0,0.0002535]
[1724197176003,0.57185936,59172.0,59171.0,0.0002535]
[1724197178796,0.37046936,59172.0,59171.0,0.0847445]
[1724197178997,0.48736936,59172.0,59171.0,0.0847445]
[1724197179401,0.48736936,59172.0,59171.0,3.8547445]
[1724197179603,0.48736936,59172.0,59171.0,0.0847445]
[1724197180105,0.48736936,59172.0,59171.0,3.8547445]
[1724197180795,0.48736936,59172.0,59171.0,0.0847445]
[1724197182399,0.12656936,59172.0,59171.0,0.0847445]
[1724197182604,0.48736936,59172.0,59171.0,0.0847445]
[1724197184507,0.57185936,59172.0,59171.0,0.0847445]
[1724197184698,0.57185936,59172.0,59171.0,0.0002535]
[1724197191820,1.16334936,59172.0,59171.0,0.0002535]
[1724197193107,0.65634936,59172.0,59171.0,0.0002535]
[1724197194017,0.57185936,59172.0,59171.0,0.0002535]
[1724197204521,0.21105936,59172.0,59171.0,0.0002535]
[1724197204818,0.57185936,59172.0,59171.0,0.0002535]
[1724197205120,0.45495936,59172.0,59171.0,0.0002535]
[1724197205420,0.57185936,59172.0,59171.0,0.0847445]
[1724197209507,0.48736936,59172.0,59171.0,0.0847445]
[1724197212717,0.5135918,59172.0,59171.0,0.0847445]
[1724197212912,0.48736936,59172.0,59171.0,0.0847445]
[1724197213318,0.5135918,59172.0,59171.0,0.0847445]
[1724197214015,0.1527918,59172.0,59171.0,0.0847445]
[1724197214321,0.12656936,59172.0,59171.0,0.0847445]
[1724197215215,0.15279723,59172.0,59171.0,0.0847445]
[1724197215414,0.12656936,59172.0,59171.0,0.0847445]
[1724197220128,0.48736936,59172.0,59171.0,0.0847445]
[1724197220426,0.57185936,59172.0,59171.0,0.0847445]
[1724197221018,0.37046936,59172.0,59171.0,0.0847445]
[1724197221324,0.48736936,59172.0,59171.0,0.0847445]
[1724197230922,0.12656936,59172.0,59171.0,0.0847445]
[1724197231122,0.02622544,59177.0,59171.0,0.05093254]
[1724197231331,0.38702982,59178.0,59177.0,0.084482]
[1724197231628,0.3608,59178.0,59177.0,0.084482]
[1724197232134,0.37009915,59178.0,59177.0,0.084482]
[1724197232636,0.37109915,59178.0,59177.0,0.085482]
[1724197234027,0.37109915,59178.0,59177.0,0.087482]
[1724197234230,0.01029915,59178.0,59177.0,0.087482]
[1724197237431,0.03652909,59178.0,59177.0,0.087482]
[1724197238033,0.02722994,59178.0,59177.0,0.087482]
[1724197238238,0.001,59178.0,59177.0,0.448282]
[1724197239237,0.1179,59178.0,59177.0,0.448282]
[1724197242431,0.1179,59178.0,59177.0,0.087482]
[1724197242637,0.1179,59178.0,59177.0,0.448282]
[1724197244041,0.1179,59178.0,59177.0,0.087482]
[1724197244244,0.1179,59178.0,59177.0,0.448282]
[1724197247343,0.1171535,59183.0,59177.0,0.448282]
[1724197247539,0.0002535,59183.0,59178.0,0.1169]
[1724197248430,0.0002535,59183.0,59182.0,0.084475]
[1724197248645,0.0012535,59183.0,59182.0,0.084475]
[1724197249734,0.0012535,59183.0,59182.0,0.085475]
[1724197259738,0.0012535,59183.0,59182.0,0.22062904]
[1724197260047,0.084464,59190.0,59182.0,0.085475]
[1724197260259,0.084464,59190.0,59189.0,0.084464]
[1724197260551,0.13386,59193.0,59192.0,0.084461]
[1724197261144,0.14336982,59193.0,59192.0,0.084461]
[1724197261539,0.26026982,59193.0,59192.0,0.084461]
[1724197262339,0.26026982,59193.0,59192.0,0.085461]
[1724197262540,0.26026982,59193.0,59192.0,0.086461]
[1724197262943,0.14336982,59193.0,59192.0,0.086461]
[1724197263263,0.30866982,59193.0,59192.0,0.086461]
[1724197269551,0.19176982,59193.0,59192.0,0.002]